{"text_format":"1","workbook":"xlsx","n_sheets":2,"sheets":["mohamed","Balance"],"not_rendered":{"charts":0,"images":0,"macros":1,"external_links":0,"defined_names":0,"comments":0,"pivot_tables":0},"unopened":[],"bounds":{"document_bytes":16777216,"sheet_cells":100000,"rows_first":2000,"rows_last":500,"rows_between":2000,"halvings":0,"cell_chars":16384,"cell_head_chars":4096},"cells_cut":0,"cells_raw":0,"read":"whole","date_system":"1900"}

{"sheet":"mohamed","index":0,"n_rows":1000,"n_cols":5,"rows_kept":1000,"cut":false,"hidden":false,"merged":[]}
["عميل جديد",null,null,"Balance"]
[]
[null,"رصيد اول المدة"]
[]
[]
[null,null,null,"رصيد اخر المدة",{"$f":"C3+B1000-C1000","v":0}]
["اسم العميل","mohamed"]
[]
[null,"مدين","دائن","البيان","التاريخ"]
[]
[]
[]
[]
[]
[]
[]
[]
[]
[]
[]
[]
[]
[]
[]
[]
[]
[]
[]
[]
[]
[]
[]
[]
[]
[]
[]
[]
[]
[]
[]
[]
[]
[]
[]
[]
[]
[]
[]
[]
[]
[]
[]
[]
[]
[]
[]
[]
[]
[]
[]
[]
[]
[]
[]
[]
[]
[]
[]
[]
[]
[]
[]
[]
[]
[]
[]
[]
[]
[]
[]
[]
[]
[]
[]
[]
[]
[]
[]
[]
[]
[]
[]
[]
[]
[]
[]
[]
[]
[]
[]
[]
[]
[]
[]
[]
[]
[]
[]
[]
[]
[]
[]
[]
[]
[]
[]
[]
[]
[]
[]
[]
[]
[]
[]
[]
[]
[]
[]
[]
[]
[]
[]
[]
[]
[]
[]
[]
[]
[]
[]
[]
[]
[]
[]
[]
[]
[]
[]
[]
[]
[]
[]
[]
[]
[]
[]
[]
[]
[]
[]
[]
[]
[]
[]
[]
[]
[]
[]
[]
[]
[]
[]
[]
[]
[]
[]
[]
[]
[]
[]
[]
[]
[]
[]
[]
[]
[]
[]
[]
[]
[]
[]
[]
[]
[]
[]
[]
[]
[]
[]
[]
[]
[]
[]
[]
[]
[]
[]
[]
[]
[]
[]
[]
[]
[]
[]
[]
[]
[]
[]
[]
[]
[]
[]
[]
[]
[]
[]
[]
[]
[]
[]
[]
[]
[]
[]
[]
[]
[]
[]
[]
[]
[]
[]
[]
[]
[]
[]
[]
[]
[]
[]
[]
[]
[]
[]
[]
[]
[]
[]
[]
[]
[]
[]
[]
[]
[]
[]
[]
[]
[]
[]
[]
[]
[]
[]
[]
[]
[]
[]
[]
[]
[]
[]
[]
[]
[]
[]
[]
[]
[]
[]
[]
[]
[]
[]
[]
[]
[]
[]
[]
[]
[]
[]
[]
[]
[]
[]
[]
[]
[]
[]
[]
[]
[]
[]
[]
[]
[]
[]
[]
[]
[]
[]
[]
[]
[]
[]
[]
[]
[]
[]
[]
[]
[]
[]
[]
[]
[]
[]
[]
[]
[]
[]
[]
[]
[]
[]
[]
[]
[]
[]
[]
[]
[]
[]
[]
[]
[]
[]
[]
[]
[]
[]
[]
[]
[]
[]
[]
[]
[]
[]
[]
[]
[]
[]
[]
[]
[]
[]
[]
[]
[]
[]
[]
[]
[]
[]
[]
[]
[]
[]
[]
[]
[]
[]
[]
[]
[]
[]
[]
[]
[]
[]
[]
[]
[]
[]
[]
[]
[]
[]
[]
[]
[]
[]
[]
[]
[]
[]
[]
[]
[]
[]
[]
[]
[]
[]
[]
[]
[]
[]
[]
[]
[]
[]
[]
[]
[]
[]
[]
[]
[]
[]
[]
[]
[]
[]
[]
[]
[]
[]
[]
[]
[]
[]
[]
[]
[]
[]
[]
[]
[]
[]
[]
[]
[]
[]
[]
[]
[]
[]
[]
[]
[]
[]
[]
[]
[]
[]
[]
[]
[]
[]
[]
[]
[]
[]
[]
[]
[]
[]
[]
[]
[]
[]
[]
[]
[]
[]
[]
[]
[]
[]
[]
[]
[]
[]
[]
[]
[]
[]
[]
[]
[]
[]
[]
[]
[]
[]
[]
[]
[]
[]
[]
[]
[]
[]
[]
[]
[]
[]
[]
[]
[]
[]
[]
[]
[]
[]
[]
[]
[]
[]
[]
[]
[]
[]
[]
[]
[]
[]
[]
[]
[]
[]
[]
[]
[]
[]
[]
[]
[]
[]
[]
[]
[]
[]
[]
[]
[]
[]
[]
[]
[]
[]
[]
[]
[]
[]
[]
[]
[]
[]
[]
[]
[]
[]
[]
[]
[]
[]
[]
[]
[]
[]
[]
[]
[]
[]
[]
[]
[]
[]
[]
[]
[]
[]
[]
[]
[]
[]
[]
[]
[]
[]
[]
[]
[]
[]
[]
[]
[]
[]
[]
[]
[]
[]
[]
[]
[]
[]
[]
[]
[]
[]
[]
[]
[]
[]
[]
[]
[]
[]
[]
[]
[]
[]
[]
[]
[]
[]
[]
[]
[]
[]
[]
[]
[]
[]
[]
[]
[]
[]
[]
[]
[]
[]
[]
[]
[]
[]
[]
[]
[]
[]
[]
[]
[]
[]
[]
[]
[]
[]
[]
[]
[]
[]
[]
[]
[]
[]
[]
[]
[]
[]
[]
[]
[]
[]
[]
[]
[]
[]
[]
[]
[]
[]
[]
[]
[]
[]
[]
[]
[]
[]
[]
[]
[]
[]
[]
[]
[]
[]
[]
[]
[]
[]
[]
[]
[]
[]
[]
[]
[]
[]
[]
[]
[]
[]
[]
[]
[]
[]
[]
[]
[]
[]
[]
[]
[]
[]
[]
[]
[]
[]
[]
[]
[]
[]
[]
[]
[]
[]
[]
[]
[]
[]
[]
[]
[]
[]
[]
[]
[]
[]
[]
[]
[]
[]
[]
[]
[]
[]
[]
[]
[]
[]
[]
[]
[]
[]
[]
[]
[]
[]
[]
[]
[]
[]
[]
[]
[]
[]
[]
[]
[]
[]
[]
[]
[]
[]
[]
[]
[]
[]
[]
[]
[]
[]
[]
[]
[]
[]
[]
[]
[]
[]
[]
[]
[]
[]
[]
[]
[]
[]
[]
[]
[]
[]
[]
[]
[]
[]
[]
[]
[]
[]
[]
[]
[]
[]
[]
[]
[]
[]
[]
[]
[]
[]
[]
[]
[]
[]
[]
[]
[]
[]
[]
[]
[]
[]
[]
[]
[]
[]
[]
[]
[]
[]
[]
[]
[]
[]
[]
[]
[]
[]
[]
[]
[]
[]
[]
[]
[]
[]
[]
[]
[]
[]
[]
[]
[]
[]
[]
[]
[]
[]
[]
[]
[]
[]
[]
[]
[]
[]
[]
[]
[]
[]
[]
[]
[]
[]
[]
[]
[]
[]
[]
[]
[]
[]
[]
[]
[]
[]
[]
[]
[]
[]
[]
[]
[]
[]
[]
[]
[]
[]
[]
[]
[]
[]
[]
[]
[]
[]
[]
[]
[]
[]
[]
[]
[]
[]
[]
[]
[]
[]
[]
[]
[]
[]
[]
[]
[]
[]
[]
[]
[]
[]
[]
[]
[]
[]
[]
[]
[]
[]
[]
[]
[]
[]
[]
[]
[]
[]
[]
[]
[]
[null,{"$f":"SUM(B10:B99)","v":0},{"$f":"SUM(C10:C99)","v":0}]

{"sheet":"Balance","index":1,"n_rows":1001,"n_cols":6,"rows_kept":1001,"cut":false,"hidden":false,"merged":[]}
[null,"عميل جديد"]
[]
[]
[]
[]
[]
[]
[]
[null,"اسم العميل","رصيد اول المدة","المدين","الدائن","رصيد اخر المدة"]
[null,"mohamed",null,null,null,{"$f":"C10+D10-E10","v":0}]
[null,"Balance",null,null,null,{"$f":"C11+D11-E11","v":0}]
[null,null,null,null,null,0]
[null,null,null,null,null,0]
[null,null,null,null,null,0]
[null,null,null,null,null,0]
[null,null,null,null,null,0]
[null,null,null,null,null,0]
[null,null,null,null,null,0]
[null,null,null,null,null,0]
[null,null,null,null,null,0]
[null,null,null,null,null,0]
[null,null,null,null,null,0]
[null,null,null,null,null,0]
[null,null,null,null,null,0]
[null,null,null,null,null,0]
[null,null,null,null,null,0]
[null,null,null,null,null,0]
[null,null,null,null,null,0]
[null,null,null,null,null,0]
[null,null,null,null,null,0]
[null,null,null,null,null,0]
[null,null,null,null,null,0]
[null,null,null,null,null,0]
[null,null,null,null,null,0]
[null,null,null,null,null,0]
[null,null,null,null,null,0]
[null,null,null,null,null,0]
[null,null,null,null,null,0]
[null,null,null,null,null,0]
[null,null,null,null,null,0]
[null,null,null,null,null,0]
[null,null,null,null,null,0]
[null,null,null,null,null,0]
[null,null,null,null,null,0]
[null,null,null,null,null,0]
[null,null,null,null,null,0]
[null,null,null,null,null,0]
[null,null,null,null,null,0]
[null,null,null,null,null,0]
[null,null,null,null,null,0]
[null,null,null,null,null,0]
[null,null,null,null,null,0]
[null,null,null,null,null,0]
[null,null,null,null,null,0]
[null,null,null,null,null,0]
[null,null,null,null,null,0]
[null,null,null,null,null,0]
[null,null,null,null,null,0]
[null,null,null,null,null,0]
[null,null,null,null,null,0]
[null,null,null,null,null,0]
[null,null,null,null,null,0]
[null,null,null,null,null,0]
[null,null,null,null,null,0]
[null,null,null,null,null,0]
[null,null,null,null,null,0]
[null,null,null,null,null,0]
[null,null,null,null,null,0]
[null,null,null,null,null,0]
[null,null,null,null,null,0]
[null,null,null,null,null,0]
[null,null,null,null,null,0]
[null,null,null,null,null,0]
[null,null,null,null,null,0]
[null,null,null,null,null,{"$f":"C75+D75-E75","v":0}]
[null,null,null,null,null,0]
[null,null,null,null,null,0]
[null,null,null,null,null,0]
[null,null,null,null,null,0]
[null,null,null,null,null,0]
[null,null,null,null,null,0]
[null,null,null,null,null,0]
[null,null,null,null,null,0]
[null,null,null,null,null,0]
[null,null,null,null,null,0]
[null,null,null,null,null,0]
[null,null,null,null,null,0]
[null,null,null,null,null,0]
[null,null,null,null,null,0]
[null,null,null,null,null,0]
[null,null,null,null,null,0]
[null,null,null,null,null,0]
[null,null,null,null,null,0]
[null,null,null,null,null,0]
[null,null,null,null,null,0]
[null,null,null,null,null,0]
[null,null,null,null,null,0]
[null,null,null,null,null,0]
[null,null,null,null,null,0]
[null,null,null,null,null,0]
[null,null,null,null,null,0]
[null,null,null,null,null,0]
[null,null,null,null,null,0]
[null,null,null,null,null,0]
[null,null,null,null,null,0]
[null,null,null,null,null,0]
[null,null,null,null,null,0]
[null,null,null,null,null,0]
[null,null,null,null,null,0]
[null,null,null,null,null,0]
[null,null,null,null,null,0]
[null,null,null,null,null,0]
[null,null,null,null,null,0]
[null,null,null,null,null,0]
[null,null,null,null,null,0]
[null,null,null,null,null,0]
[null,null,null,null,null,0]
[null,null,null,null,null,0]
[null,null,null,null,null,0]
[null,null,null,null,null,0]
[null,null,null,null,null,0]
[null,null,null,null,null,0]
[null,null,null,null,null,0]
[null,null,null,null,null,0]
[null,null,null,null,null,0]
[null,null,null,null,null,0]
[null,null,null,null,null,0]
[null,null,null,null,null,0]
[null,null,null,null,null,0]
[null,null,null,null,null,0]
[null,null,null,null,null,0]
[null,null,null,null,null,0]
[null,null,null,null,null,0]
[null,null,null,null,null,0]
[null,null,null,null,null,0]
[null,null,null,null,null,0]
[null,null,null,null,null,0]
[null,null,null,null,null,0]
[null,null,null,null,null,{"$f":"C139+D139-E139","v":0}]
[null,null,null,null,null,0]
[null,null,null,null,null,0]
[null,null,null,null,null,0]
[null,null,null,null,null,0]
[null,null,null,null,null,0]
[null,null,null,null,null,0]
[null,null,null,null,null,0]
[null,null,null,null,null,0]
[null,null,null,null,null,0]
[null,null,null,null,null,0]
[null,null,null,null,null,0]
[null,null,null,null,null,0]
[null,null,null,null,null,0]
[null,null,null,null,null,0]
[null,null,null,null,null,0]
[null,null,null,null,null,0]
[null,null,null,null,null,0]
[null,null,null,null,null,0]
[null,null,null,null,null,0]
[null,null,null,null,null,0]
[null,null,null,null,null,0]
[null,null,null,null,null,0]
[null,null,null,null,null,0]
[null,null,null,null,null,0]
[null,null,null,null,null,0]
[null,null,null,null,null,0]
[null,null,null,null,null,0]
[null,null,null,null,null,0]
[null,null,null,null,null,0]
[null,null,null,null,null,0]
[null,null,null,null,null,0]
[null,null,null,null,null,0]
[null,null,null,null,null,0]
[null,null,null,null,null,0]
[null,null,null,null,null,0]
[null,null,null,null,null,0]
[null,null,null,null,null,0]
[null,null,null,null,null,0]
[null,null,null,null,null,0]
[null,null,null,null,null,0]
[null,null,null,null,null,0]
[null,null,null,null,null,0]
[null,null,null,null,null,0]
[null,null,null,null,null,0]
[null,null,null,null,null,0]
[null,null,null,null,null,0]
[null,null,null,null,null,0]
[null,null,null,null,null,0]
[null,null,null,null,null,0]
[null,null,null,null,null,0]
[null,null,null,null,null,0]
[null,null,null,null,null,0]
[null,null,null,null,null,0]
[null,null,null,null,null,0]
[null,null,null,null,null,0]
[null,null,null,null,null,0]
[null,null,null,null,null,0]
[null,null,null,null,null,0]
[null,null,null,null,null,0]
[null,null,null,null,null,0]
[null,null,null,null,null,0]
[null,null,null,null,null,0]
[null,null,null,null,null,0]
[null,null,null,null,null,{"$f":"C203+D203-E203","v":0}]
[null,null,null,null,null,0]
[null,null,null,null,null,0]
[null,null,null,null,null,0]
[null,null,null,null,null,0]
[null,null,null,null,null,0]
[null,null,null,null,null,0]
[null,null,null,null,null,0]
[null,null,null,null,null,0]
[null,null,null,null,null,0]
[null,null,null,null,null,0]
[null,null,null,null,null,0]
[null,null,null,null,null,0]
[null,null,null,null,null,0]
[null,null,null,null,null,0]
[null,null,null,null,null,0]
[null,null,null,null,null,0]
[null,null,null,null,null,0]
[null,null,null,null,null,0]
[null,null,null,null,null,0]
[null,null,null,null,null,0]
[null,null,null,null,null,0]
[null,null,null,null,null,0]
[null,null,null,null,null,0]
[null,null,null,null,null,0]
[null,null,null,null,null,0]
[null,null,null,null,null,0]
[null,null,null,null,null,0]
[null,null,null,null,null,0]
[null,null,null,null,null,0]
[null,null,null,null,null,0]
[null,null,null,null,null,0]
[null,null,null,null,null,0]
[null,null,null,null,null,0]
[null,null,null,null,null,0]
[null,null,null,null,null,0]
[null,null,null,null,null,0]
[null,null,null,null,null,0]
[null,null,null,null,null,0]
[null,null,null,null,null,0]
[null,null,null,null,null,0]
[null,null,null,null,null,0]
[null,null,null,null,null,0]
[null,null,null,null,null,0]
[null,null,null,null,null,0]
[null,null,null,null,null,0]
[null,null,null,null,null,0]
[null,null,null,null,null,0]
[null,null,null,null,null,0]
[null,null,null,null,null,0]
[null,null,null,null,null,0]
[null,null,null,null,null,0]
[null,null,null,null,null,0]
[null,null,null,null,null,0]
[null,null,null,null,null,0]
[null,null,null,null,null,0]
[null,null,null,null,null,0]
[null,null,null,null,null,0]
[null,null,null,null,null,0]
[null,null,null,null,null,0]
[null,null,null,null,null,0]
[null,null,null,null,null,0]
[null,null,null,null,null,0]
[null,null,null,null,null,0]
[null,null,null,null,null,{"$f":"C267+D267-E267","v":0}]
[null,null,null,null,null,0]
[null,null,null,null,null,0]
[null,null,null,null,null,0]
[null,null,null,null,null,0]
[null,null,null,null,null,0]
[null,null,null,null,null,0]
[null,null,null,null,null,0]
[null,null,null,null,null,0]
[null,null,null,null,null,0]
[null,null,null,null,null,0]
[null,null,null,null,null,0]
[null,null,null,null,null,0]
[null,null,null,null,null,0]
[null,null,null,null,null,0]
[null,null,null,null,null,0]
[null,null,null,null,null,0]
[null,null,null,null,null,0]
[null,null,null,null,null,0]
[null,null,null,null,null,0]
[null,null,null,null,null,0]
[null,null,null,null,null,0]
[null,null,null,null,null,0]
[null,null,null,null,null,0]
[null,null,null,null,null,0]
[null,null,null,null,null,0]
[null,null,null,null,null,0]
[null,null,null,null,null,0]
[null,null,null,null,null,0]
[null,null,null,null,null,0]
[null,null,null,null,null,0]
[null,null,null,null,null,0]
[null,null,null,null,null,0]
[null,null,null,null,null,0]
[null,null,null,null,null,0]
[null,null,null,null,null,0]
[null,null,null,null,null,0]
[null,null,null,null,null,0]
[null,null,null,null,null,0]
[null,null,null,null,null,0]
[null,null,null,null,null,0]
[null,null,null,null,null,0]
[null,null,null,null,null,0]
[null,null,null,null,null,0]
[null,null,null,null,null,0]
[null,null,null,null,null,0]
[null,null,null,null,null,0]
[null,null,null,null,null,0]
[null,null,null,null,null,0]
[null,null,null,null,null,0]
[null,null,null,null,null,0]
[null,null,null,null,null,0]
[null,null,null,null,null,0]
[null,null,null,null,null,0]
[null,null,null,null,null,0]
[null,null,null,null,null,0]
[null,null,null,null,null,0]
[null,null,null,null,null,0]
[null,null,null,null,null,0]
[null,null,null,null,null,0]
[null,null,null,null,null,0]
[null,null,null,null,null,0]
[null,null,null,null,null,0]
[null,null,null,null,null,0]
[null,null,null,null,null,{"$f":"C331+D331-E331","v":0}]
[null,null,null,null,null,0]
[null,null,null,null,null,0]
[null,null,null,null,null,0]
[null,null,null,null,null,0]
[null,null,null,null,null,0]
[null,null,null,null,null,0]
[null,null,null,null,null,0]
[null,null,null,null,null,0]
[null,null,null,null,null,0]
[null,null,null,null,null,0]
[null,null,null,null,null,0]
[null,null,null,null,null,0]
[null,null,null,null,null,0]
[null,null,null,null,null,0]
[null,null,null,null,null,0]
[null,null,null,null,null,0]
[null,null,null,null,null,0]
[null,null,null,null,null,0]
[null,null,null,null,null,0]
[null,null,null,null,null,0]
[null,null,null,null,null,0]
[null,null,null,null,null,0]
[null,null,null,null,null,0]
[null,null,null,null,null,0]
[null,null,null,null,null,0]
[null,null,null,null,null,0]
[null,null,null,null,null,0]
[null,null,null,null,null,0]
[null,null,null,null,null,0]
[null,null,null,null,null,0]
[null,null,null,null,null,0]
[null,null,null,null,null,0]
[null,null,null,null,null,0]
[null,null,null,null,null,0]
[null,null,null,null,null,0]
[null,null,null,null,null,0]
[null,null,null,null,null,0]
[null,null,null,null,null,0]
[null,null,null,null,null,0]
[null,null,null,null,null,0]
[null,null,null,null,null,0]
[null,null,null,null,null,0]
[null,null,null,null,null,0]
[null,null,null,null,null,0]
[null,null,null,null,null,0]
[null,null,null,null,null,0]
[null,null,null,null,null,0]
[null,null,null,null,null,0]
[null,null,null,null,null,0]
[null,null,null,null,null,0]
[null,null,null,null,null,0]
[null,null,null,null,null,0]
[null,null,null,null,null,0]
[null,null,null,null,null,0]
[null,null,null,null,null,0]
[null,null,null,null,null,0]
[null,null,null,null,null,0]
[null,null,null,null,null,0]
[null,null,null,null,null,0]
[null,null,null,null,null,0]
[null,null,null,null,null,0]
[null,null,null,null,null,0]
[null,null,null,null,null,0]
[null,null,null,null,null,{"$f":"C395+D395-E395","v":0}]
[null,null,null,null,null,0]
[null,null,null,null,null,0]
[null,null,null,null,null,0]
[null,null,null,null,null,0]
[null,null,null,null,null,0]
[null,null,null,null,null,0]
[null,null,null,null,null,0]
[null,null,null,null,null,0]
[null,null,null,null,null,0]
[null,null,null,null,null,0]
[null,null,null,null,null,0]
[null,null,null,null,null,0]
[null,null,null,null,null,0]
[null,null,null,null,null,0]
[null,null,null,null,null,0]
[null,null,null,null,null,0]
[null,null,null,null,null,0]
[null,null,null,null,null,0]
[null,null,null,null,null,0]
[null,null,null,null,null,0]
[null,null,null,null,null,0]
[null,null,null,null,null,0]
[null,null,null,null,null,0]
[null,null,null,null,null,0]
[null,null,null,null,null,0]
[null,null,null,null,null,0]
[null,null,null,null,null,0]
[null,null,null,null,null,0]
[null,null,null,null,null,0]
[null,null,null,null,null,0]
[null,null,null,null,null,0]
[null,null,null,null,null,0]
[null,null,null,null,null,0]
[null,null,null,null,null,0]
[null,null,null,null,null,0]
[null,null,null,null,null,0]
[null,null,null,null,null,0]
[null,null,null,null,null,0]
[null,null,null,null,null,0]
[null,null,null,null,null,0]
[null,null,null,null,null,0]
[null,null,null,null,null,0]
[null,null,null,null,null,0]
[null,null,null,null,null,0]
[null,null,null,null,null,0]
[null,null,null,null,null,0]
[null,null,null,null,null,0]
[null,null,null,null,null,0]
[null,null,null,null,null,0]
[null,null,null,null,null,0]
[null,null,null,null,null,0]
[null,null,null,null,null,0]
[null,null,null,null,null,0]
[null,null,null,null,null,0]
[null,null,null,null,null,0]
[null,null,null,null,null,0]
[null,null,null,null,null,0]
[null,null,null,null,null,0]
[null,null,null,null,null,0]
[null,null,null,null,null,0]
[null,null,null,null,null,0]
[null,null,null,null,null,0]
[null,null,null,null,null,0]
[null,null,null,null,null,{"$f":"C459+D459-E459","v":0}]
[null,null,null,null,null,0]
[null,null,null,null,null,0]
[null,null,null,null,null,0]
[null,null,null,null,null,0]
[null,null,null,null,null,0]
[null,null,null,null,null,0]
[null,null,null,null,null,0]
[null,null,null,null,null,0]
[null,null,null,null,null,0]
[null,null,null,null,null,0]
[null,null,null,null,null,0]
[null,null,null,null,null,0]
[null,null,null,null,null,0]
[null,null,null,null,null,0]
[null,null,null,null,null,0]
[null,null,null,null,null,0]
[null,null,null,null,null,0]
[null,null,null,null,null,0]
[null,null,null,null,null,0]
[null,null,null,null,null,0]
[null,null,null,null,null,0]
[null,null,null,null,null,0]
[null,null,null,null,null,0]
[null,null,null,null,null,0]
[null,null,null,null,null,0]
[null,null,null,null,null,0]
[null,null,null,null,null,0]
[null,null,null,null,null,0]
[null,null,null,null,null,0]
[null,null,null,null,null,0]
[null,null,null,null,null,0]
[null,null,null,null,null,0]
[null,null,null,null,null,0]
[null,null,null,null,null,0]
[null,null,null,null,null,0]
[null,null,null,null,null,0]
[null,null,null,null,null,0]
[null,null,null,null,null,0]
[null,null,null,null,null,0]
[null,null,null,null,null,0]
[null,null,null,null,null,0]
[null,null,null,null,null,0]
[null,null,null,null,null,0]
[null,null,null,null,null,0]
[null,null,null,null,null,0]
[null,null,null,null,null,0]
[null,null,null,null,null,0]
[null,null,null,null,null,0]
[null,null,null,null,null,0]
[null,null,null,null,null,0]
[null,null,null,null,null,0]
[null,null,null,null,null,0]
[null,null,null,null,null,0]
[null,null,null,null,null,0]
[null,null,null,null,null,0]
[null,null,null,null,null,0]
[null,null,null,null,null,0]
[null,null,null,null,null,0]
[null,null,null,null,null,0]
[null,null,null,null,null,0]
[null,null,null,null,null,0]
[null,null,null,null,null,0]
[null,null,null,null,null,0]
[null,null,null,null,null,{"$f":"C523+D523-E523","v":0}]
[null,null,null,null,null,0]
[null,null,null,null,null,0]
[null,null,null,null,null,0]
[null,null,null,null,null,0]
[null,null,null,null,null,0]
[null,null,null,null,null,0]
[null,null,null,null,null,0]
[null,null,null,null,null,0]
[null,null,null,null,null,0]
[null,null,null,null,null,0]
[null,null,null,null,null,0]
[null,null,null,null,null,0]
[null,null,null,null,null,0]
[null,null,null,null,null,0]
[null,null,null,null,null,0]
[null,null,null,null,null,0]
[null,null,null,null,null,0]
[null,null,null,null,null,0]
[null,null,null,null,null,0]
[null,null,null,null,null,0]
[null,null,null,null,null,0]
[null,null,null,null,null,0]
[null,null,null,null,null,0]
[null,null,null,null,null,0]
[null,null,null,null,null,0]
[null,null,null,null,null,0]
[null,null,null,null,null,0]
[null,null,null,null,null,0]
[null,null,null,null,null,0]
[null,null,null,null,null,0]
[null,null,null,null,null,0]
[null,null,null,null,null,0]
[null,null,null,null,null,0]
[null,null,null,null,null,0]
[null,null,null,null,null,0]
[null,null,null,null,null,0]
[null,null,null,null,null,0]
[null,null,null,null,null,0]
[null,null,null,null,null,0]
[null,null,null,null,null,0]
[null,null,null,null,null,0]
[null,null,null,null,null,0]
[null,null,null,null,null,0]
[null,null,null,null,null,0]
[null,null,null,null,null,0]
[null,null,null,null,null,0]
[null,null,null,null,null,0]
[null,null,null,null,null,0]
[null,null,null,null,null,0]
[null,null,null,null,null,0]
[null,null,null,null,null,0]
[null,null,null,null,null,0]
[null,null,null,null,null,0]
[null,null,null,null,null,0]
[null,null,null,null,null,0]
[null,null,null,null,null,0]
[null,null,null,null,null,0]
[null,null,null,null,null,0]
[null,null,null,null,null,0]
[null,null,null,null,null,0]
[null,null,null,null,null,0]
[null,null,null,null,null,0]
[null,null,null,null,null,0]
[null,null,null,null,null,{"$f":"C587+D587-E587","v":0}]
[null,null,null,null,null,0]
[null,null,null,null,null,0]
[null,null,null,null,null,0]
[null,null,null,null,null,0]
[null,null,null,null,null,0]
[null,null,null,null,null,0]
[null,null,null,null,null,0]
[null,null,null,null,null,0]
[null,null,null,null,null,0]
[null,null,null,null,null,0]
[null,null,null,null,null,0]
[null,null,null,null,null,0]
[null,null,null,null,null,0]
[null,null,null,null,null,0]
[null,null,null,null,null,0]
[null,null,null,null,null,0]
[null,null,null,null,null,0]
[null,null,null,null,null,0]
[null,null,null,null,null,0]
[null,null,null,null,null,0]
[null,null,null,null,null,0]
[null,null,null,null,null,0]
[null,null,null,null,null,0]
[null,null,null,null,null,0]
[null,null,null,null,null,0]
[null,null,null,null,null,0]
[null,null,null,null,null,0]
[null,null,null,null,null,0]
[null,null,null,null,null,0]
[null,null,null,null,null,0]
[null,null,null,null,null,0]
[null,null,null,null,null,0]
[null,null,null,null,null,0]
[null,null,null,null,null,0]
[null,null,null,null,null,0]
[null,null,null,null,null,0]
[null,null,null,null,null,0]
[null,null,null,null,null,0]
[null,null,null,null,null,0]
[null,null,null,null,null,0]
[null,null,null,null,null,0]
[null,null,null,null,null,0]
[null,null,null,null,null,0]
[null,null,null,null,null,0]
[null,null,null,null,null,0]
[null,null,null,null,null,0]
[null,null,null,null,null,0]
[null,null,null,null,null,0]
[null,null,null,null,null,0]
[null,null,null,null,null,0]
[null,null,null,null,null,0]
[null,null,null,null,null,0]
[null,null,null,null,null,0]
[null,null,null,null,null,0]
[null,null,null,null,null,0]
[null,null,null,null,null,0]
[null,null,null,null,null,0]
[null,null,null,null,null,0]
[null,null,null,null,null,0]
[null,null,null,null,null,0]
[null,null,null,null,null,0]
[null,null,null,null,null,0]
[null,null,null,null,null,0]
[null,null,null,null,null,{"$f":"C651+D651-E651","v":0}]
[null,null,null,null,null,0]
[null,null,null,null,null,0]
[null,null,null,null,null,0]
[null,null,null,null,null,0]
[null,null,null,null,null,0]
[null,null,null,null,null,0]
[null,null,null,null,null,0]
[null,null,null,null,null,0]
[null,null,null,null,null,0]
[null,null,null,null,null,0]
[null,null,null,null,null,0]
[null,null,null,null,null,0]
[null,null,null,null,null,0]
[null,null,null,null,null,0]
[null,null,null,null,null,0]
[null,null,null,null,null,0]
[null,null,null,null,null,0]
[null,null,null,null,null,0]
[null,null,null,null,null,0]
[null,null,null,null,null,0]
[null,null,null,null,null,0]
[null,null,null,null,null,0]
[null,null,null,null,null,0]
[null,null,null,null,null,0]
[null,null,null,null,null,0]
[null,null,null,null,null,0]
[null,null,null,null,null,0]
[null,null,null,null,null,0]
[null,null,null,null,null,0]
[null,null,null,null,null,0]
[null,null,null,null,null,0]
[null,null,null,null,null,0]
[null,null,null,null,null,0]
[null,null,null,null,null,0]
[null,null,null,null,null,0]
[null,null,null,null,null,0]
[null,null,null,null,null,0]
[null,null,null,null,null,0]
[null,null,null,null,null,0]
[null,null,null,null,null,0]
[null,null,null,null,null,0]
[null,null,null,null,null,0]
[null,null,null,null,null,0]
[null,null,null,null,null,0]
[null,null,null,null,null,0]
[null,null,null,null,null,0]
[null,null,null,null,null,0]
[null,null,null,null,null,0]
[null,null,null,null,null,0]
[null,null,null,null,null,0]
[null,null,null,null,null,0]
[null,null,null,null,null,0]
[null,null,null,null,null,0]
[null,null,null,null,null,0]
[null,null,null,null,null,0]
[null,null,null,null,null,0]
[null,null,null,null,null,0]
[null,null,null,null,null,0]
[null,null,null,null,null,0]
[null,null,null,null,null,0]
[null,null,null,null,null,0]
[null,null,null,null,null,0]
[null,null,null,null,null,0]
[null,null,null,null,null,{"$f":"C715+D715-E715","v":0}]
[null,null,null,null,null,0]
[null,null,null,null,null,0]
[null,null,null,null,null,0]
[null,null,null,null,null,0]
[null,null,null,null,null,0]
[null,null,null,null,null,0]
[null,null,null,null,null,0]
[null,null,null,null,null,0]
[null,null,null,null,null,0]
[null,null,null,null,null,0]
[null,null,null,null,null,0]
[null,null,null,null,null,0]
[null,null,null,null,null,0]
[null,null,null,null,null,0]
[null,null,null,null,null,0]
[null,null,null,null,null,0]
[null,null,null,null,null,0]
[null,null,null,null,null,0]
[null,null,null,null,null,0]
[null,null,null,null,null,0]
[null,null,null,null,null,0]
[null,null,null,null,null,0]
[null,null,null,null,null,0]
[null,null,null,null,null,0]
[null,null,null,null,null,0]
[null,null,null,null,null,0]
[null,null,null,null,null,0]
[null,null,null,null,null,0]
[null,null,null,null,null,0]
[null,null,null,null,null,0]
[null,null,null,null,null,0]
[null,null,null,null,null,0]
[null,null,null,null,null,0]
[null,null,null,null,null,0]
[null,null,null,null,null,0]
[null,null,null,null,null,0]
[null,null,null,null,null,0]
[null,null,null,null,null,0]
[null,null,null,null,null,0]
[null,null,null,null,null,0]
[null,null,null,null,null,0]
[null,null,null,null,null,0]
[null,null,null,null,null,0]
[null,null,null,null,null,0]
[null,null,null,null,null,0]
[null,null,null,null,null,0]
[null,null,null,null,null,0]
[null,null,null,null,null,0]
[null,null,null,null,null,0]
[null,null,null,null,null,0]
[null,null,null,null,null,0]
[null,null,null,null,null,0]
[null,null,null,null,null,0]
[null,null,null,null,null,0]
[null,null,null,null,null,0]
[null,null,null,null,null,0]
[null,null,null,null,null,0]
[null,null,null,null,null,0]
[null,null,null,null,null,0]
[null,null,null,null,null,0]
[null,null,null,null,null,0]
[null,null,null,null,null,0]
[null,null,null,null,null,0]
[null,null,null,null,null,{"$f":"C779+D779-E779","v":0}]
[null,null,null,null,null,0]
[null,null,null,null,null,0]
[null,null,null,null,null,0]
[null,null,null,null,null,0]
[null,null,null,null,null,0]
[null,null,null,null,null,0]
[null,null,null,null,null,0]
[null,null,null,null,null,0]
[null,null,null,null,null,0]
[null,null,null,null,null,0]
[null,null,null,null,null,0]
[null,null,null,null,null,0]
[null,null,null,null,null,0]
[null,null,null,null,null,0]
[null,null,null,null,null,0]
[null,null,null,null,null,0]
[null,null,null,null,null,0]
[null,null,null,null,null,0]
[null,null,null,null,null,0]
[null,null,null,null,null,0]
[null,null,null,null,null,0]
[null,null,null,null,null,0]
[null,null,null,null,null,0]
[null,null,null,null,null,0]
[null,null,null,null,null,0]
[null,null,null,null,null,0]
[null,null,null,null,null,0]
[null,null,null,null,null,0]
[null,null,null,null,null,0]
[null,null,null,null,null,0]
[null,null,null,null,null,0]
[null,null,null,null,null,0]
[null,null,null,null,null,0]
[null,null,null,null,null,0]
[null,null,null,null,null,0]
[null,null,null,null,null,0]
[null,null,null,null,null,0]
[null,null,null,null,null,0]
[null,null,null,null,null,0]
[null,null,null,null,null,0]
[null,null,null,null,null,0]
[null,null,null,null,null,0]
[null,null,null,null,null,0]
[null,null,null,null,null,0]
[null,null,null,null,null,0]
[null,null,null,null,null,0]
[null,null,null,null,null,0]
[null,null,null,null,null,0]
[null,null,null,null,null,0]
[null,null,null,null,null,0]
[null,null,null,null,null,0]
[null,null,null,null,null,0]
[null,null,null,null,null,0]
[null,null,null,null,null,0]
[null,null,null,null,null,0]
[null,null,null,null,null,0]
[null,null,null,null,null,0]
[null,null,null,null,null,0]
[null,null,null,null,null,0]
[null,null,null,null,null,0]
[null,null,null,null,null,0]
[null,null,null,null,null,0]
[null,null,null,null,null,0]
[null,null,null,null,null,{"$f":"C843+D843-E843","v":0}]
[null,null,null,null,null,0]
[null,null,null,null,null,0]
[null,null,null,null,null,0]
[null,null,null,null,null,0]
[null,null,null,null,null,0]
[null,null,null,null,null,0]
[null,null,null,null,null,0]
[null,null,null,null,null,0]
[null,null,null,null,null,0]
[null,null,null,null,null,0]
[null,null,null,null,null,0]
[null,null,null,null,null,0]
[null,null,null,null,null,0]
[null,null,null,null,null,0]
[null,null,null,null,null,0]
[null,null,null,null,null,0]
[null,null,null,null,null,0]
[null,null,null,null,null,0]
[null,null,null,null,null,0]
[null,null,null,null,null,0]
[null,null,null,null,null,0]
[null,null,null,null,null,0]
[null,null,null,null,null,0]
[null,null,null,null,null,0]
[null,null,null,null,null,0]
[null,null,null,null,null,0]
[null,null,null,null,null,0]
[null,null,null,null,null,0]
[null,null,null,null,null,0]
[null,null,null,null,null,0]
[null,null,null,null,null,0]
[null,null,null,null,null,0]
[null,null,null,null,null,0]
[null,null,null,null,null,0]
[null,null,null,null,null,0]
[null,null,null,null,null,0]
[null,null,null,null,null,0]
[null,null,null,null,null,0]
[null,null,null,null,null,0]
[null,null,null,null,null,0]
[null,null,null,null,null,0]
[null,null,null,null,null,0]
[null,null,null,null,null,0]
[null,null,null,null,null,0]
[null,null,null,null,null,0]
[null,null,null,null,null,0]
[null,null,null,null,null,0]
[null,null,null,null,null,0]
[null,null,null,null,null,0]
[null,null,null,null,null,0]
[null,null,null,null,null,0]
[null,null,null,null,null,0]
[null,null,null,null,null,0]
[null,null,null,null,null,0]
[null,null,null,null,null,0]
[null,null,null,null,null,0]
[null,null,null,null,null,0]
[null,null,null,null,null,0]
[null,null,null,null,null,0]
[null,null,null,null,null,0]
[null,null,null,null,null,0]
[null,null,null,null,null,0]
[null,null,null,null,null,0]
[null,null,null,null,null,{"$f":"C907+D907-E907","v":0}]
[null,null,null,null,null,0]
[null,null,null,null,null,0]
[null,null,null,null,null,0]
[null,null,null,null,null,0]
[null,null,null,null,null,0]
[null,null,null,null,null,0]
[null,null,null,null,null,0]
[null,null,null,null,null,0]
[null,null,null,null,null,0]
[null,null,null,null,null,0]
[null,null,null,null,null,0]
[null,null,null,null,null,0]
[null,null,null,null,null,0]
[null,null,null,null,null,0]
[null,null,null,null,null,0]
[null,null,null,null,null,0]
[null,null,null,null,null,0]
[null,null,null,null,null,0]
[null,null,null,null,null,0]
[null,null,null,null,null,0]
[null,null,null,null,null,0]
[null,null,null,null,null,0]
[null,null,null,null,null,0]
[null,null,null,null,null,0]
[null,null,null,null,null,0]
[null,null,null,null,null,0]
[null,null,null,null,null,0]
[null,null,null,null,null,0]
[null,null,null,null,null,0]
[null,null,null,null,null,0]
[null,null,null,null,null,0]
[null,null,null,null,null,0]
[null,null,null,null,null,0]
[null,null,null,null,null,0]
[null,null,null,null,null,0]
[null,null,null,null,null,0]
[null,null,null,null,null,0]
[null,null,null,null,null,0]
[null,null,null,null,null,0]
[null,null,null,null,null,0]
[null,null,null,null,null,0]
[null,null,null,null,null,0]
[null,null,null,null,null,0]
[null,null,null,null,null,0]
[null,null,null,null,null,0]
[null,null,null,null,null,0]
[null,null,null,null,null,0]
[null,null,null,null,null,0]
[null,null,null,null,null,0]
[null,null,null,null,null,0]
[null,null,null,null,null,0]
[null,null,null,null,null,0]
[null,null,null,null,null,0]
[null,null,null,null,null,0]
[null,null,null,null,null,0]
[null,null,null,null,null,0]
[null,null,null,null,null,0]
[null,null,null,null,null,0]
[null,null,null,null,null,0]
[null,null,null,null,null,0]
[null,null,null,null,null,0]
[null,null,null,null,null,0]
[null,null,null,null,null,0]
[null,null,null,null,null,{"$f":"C971+D971-E971","v":0}]
[null,null,null,null,null,0]
[null,null,null,null,null,0]
[null,null,null,null,null,0]
[null,null,null,null,null,0]
[null,null,null,null,null,0]
[null,null,null,null,null,0]
[null,null,null,null,null,0]
[null,null,null,null,null,0]
[null,null,null,null,null,0]
[null,null,null,null,null,0]
[null,null,null,null,null,0]
[null,null,null,null,null,0]
[null,null,null,null,null,0]
[null,null,null,null,null,0]
[null,null,null,null,null,0]
[null,null,null,null,null,0]
[null,null,null,null,null,0]
[null,null,null,null,null,0]
[null,null,null,null,null,0]
[null,null,null,null,null,0]
[null,null,null,null,null,0]
[null,null,null,null,null,0]
[null,null,null,null,null,0]
[null,null,null,null,null,0]
[null,null,null,null,null,0]
[null,null,null,null,null,0]
[null,null,null,null,null,0]
[null,null,null,null,null,0]
[null,null,null,null,null,0]
[null,"الاجمالى",{"$f":"SUM(C11:C1000)","v":0},0,0,{"$f":"SUM(F11:F1000)","v":0}]